bitfinex-derivatives/quotes_ETHF0:USTF0_20251007
["timestamp","ask_amount","ask_price","bid_price","bid_amount"]
[1759873793393,1.00136,4491.7,4491.2,0.3224]
[1759873793394,0.3175,4491.7,4491.2,0.3224]
[1759873793593,0.92323,4491.7,4491.6,0.7457]
[1759873795195,0.3175,4491.7,4491.6,0.7457]
[1759873795500,0.00262893,4491.9,4491.8,0.4233]
[1759873795795,1.25554496,4491.9,4491.8,0.7457]
[1759873796201,1.65606496,4491.9,4491.8,0.7457]
[1759873796601,1.45036496,4491.9,4491.8,0.7457]
[1759873796802,0.52714496,4491.9,4491.8,0.7457]
[1759873797001,0.00262893,4491.9,4491.8,0.7457]
[1759873797203,0.00262893,4491.9,4491.8,1.08128713]
[1759873798900,0.00262893,4491.9,4491.8,41.88128713]
[1759873801601,0.00262893,4491.9,4491.8,0.7457]
[1759873801907,0.2116,4491.6,4491.5,0.223]
[1759873802204,0.5294,4491.6,4491.5,0.7718]
[1759873802503,1.13883,4491.8,4491.7,0.7583]
[1759873803698,1.13883,4491.8,4491.7,0.5488]
[1759873804503,0.7383,4491.8,4491.7,0.5488]
[1759873804806,0.7383,4491.8,4491.5,0.62355]
[1759873805000,0.3178,4491.7,4491.5,0.95205]
[1759873805303,0.5294,4491.6,4491.5,0.95205]
[1759873806306,0.5294,4491.6,4491.5,1.17235]
[1759873806702,0.5294,4491.6,4491.5,1.38185]
[1759873806902,0.2116,4491.6,4491.5,1.51195]
[1759873807102,0.5294,4491.6,4491.5,1.51195]
[1759873807805,0.5294,4491.6,4491.5,0.9813]
[1759873809001,0.7383,4491.6,4491.5,0.9813]
[1759873810411,0.7383,4491.6,4491.5,1.38185]
[1759873812310,0.7383,4491.6,4491.5,0.95205]
[1759873812517,0.7383,4491.6,4491.5,0.62355]
[1759873813418,0.7383,4491.6,4491.5,1.17235]
[1759873813916,0.7383,4491.6,4491.5,0.95205]
[1759873817016,0.7383,4491.6,4491.5,0.5515]
[1759873817222,0.7383,4491.6,4491.5,0.223]
[1759873818320,0.7383,4491.6,4491.5,0.7718]
[1759873818620,0.7383,4491.6,4491.5,1.17235]
[1759873819719,0.5294,4491.6,4491.5,1.17235]
[1759873820916,0.7383,4491.6,4491.5,0.62355]
[1759873821321,0.7383,4491.6,4491.5,1.17165]
[1759873821920,0.7383,4491.6,4491.5,0.95215]
[1759873822726,0.7383,4491.6,4491.5,1.17165]
[1759873825425,1.13884,4491.6,4491.5,0.223]
[1759873825723,6.13884,4491.6,4491.5,0.223]
[1759873826914,6.13884,4491.6,4491.0,0.00215453]
[1759873826915,0.40059,4491.1,4491.0,0.00215453]
[1759873827125,1.16239,4491.1,4491.0,0.22515453]
[1759873836029,1.16239,4491.1,4491.0,0.76655453]
[1759873836428,1.16239,4491.1,4491.0,0.22515453]
[1759873838529,1.16239,4491.1,4491.0,0.00215453]
[1759873842431,1.16239,4491.1,4491.0,0.31275453]
[1759873842634,1.16239,4491.1,4491.0,0.00215453]
[1759873842828,1.16239,4491.1,4491.0,0.31275453]
[1759873843028,1.16239,4491.1,4491.0,0.00215453]
[1759873845835,0.94389,4491.1,4491.0,0.89345453]
[1759873846334,0.94389,4491.1,4491.0,0.76065453]
[1759873846532,1.16869,4491.1,4491.0,0.76065453]
[1759873847235,1.16869,4491.1,4491.0,0.22565453]
[1759873847434,1.16869,4491.1,4491.0,0.53625453]
[1759873847733,1.16869,4491.1,4491.0,0.22565453]
[1759873848235,0.40059,4491.1,4491.0,0.89345453]
[1759873848427,0.2237,4491.6,4491.5,0.2235]
[1759873848628,0.4485,4491.6,4491.5,0.2235]
[1759873848829,3.36061002,4491.6,4491.3,0.3106]
[1759873849133,1.16626,4491.4,4491.3,0.7585]
[1759873849335,1.68771956,4491.4,4491.3,0.7585]
[1759873849630,0.40058,4491.3,4491.0,0.00215453]
[1759873849834,0.5409,4491.1,4491.0,0.45005453]
[1759873850337,0.5409,4491.1,4491.0,0.76065453]
[1759873850836,1.16629,4491.1,4491.0,0.76065453]
[1759873851038,1.16629,4491.1,4491.0,0.00215453]
[1759873851837,1.16629,4491.1,4491.0,0.31275453]
[1759873853035,1.16629,4491.1,4491.0,0.00215453]
[1759873853527,1.16629,4491.1,4491.0,0.89345453]
[1759873853528,0.62429,4491.1,4491.0,0.89345453]
[1759873853727,0.94149,4491.1,4491.0,0.89345453]
[1759873854138,1.16629,4491.1,4491.0,0.53625453]
[1759873855037,1.16629,4491.1,4491.0,0.00215453]
[1759873855337,1.16629,4491.1,4491.0,0.31275453]
[1759873855538,1.16629,4491.1,4491.0,0.76065453]
[1759873856535,0.40059,4491.1,4491.0,0.89345453]
[1759873856736,0.94149,4491.1,4491.0,0.53625453]
[1759873856936,0.94149,4491.1,4491.0,0.31275453]
[1759873857136,1.16629,4491.1,4491.0,0.31275453]
[1759873857441,1.16629,4491.1,4491.0,0.52675453]
[1759873857640,1.16629,4491.1,4491.0,0.73215453]
[1759873857835,0.40059,4491.1,4491.0,0.86525453]
[1759873858040,0.94169,4491.1,4491.0,0.31275453]
[1759873858242,1.15759,4491.1,4491.0,0.00215453]
[1759873858541,1.15759,4491.1,4491.0,0.75525453]
[1759873858730,1.15759,4491.1,4491.0,0.54985453]
[1759873859241,1.15759,4491.1,4491.0,0.33585453]
[1759873859442,1.15759,4491.1,4491.0,0.00215453]
[1759873860142,1.15759,4491.1,4491.0,0.54985453]
[1759873860443,1.15759,4491.1,4491.0,0.00215453]
[1759873860639,1.15759,4491.1,4491.0,0.33585453]
[1759873861041,1.15759,4491.1,4491.0,0.00215453]
[1759873861345,1.15759,4491.1,4491.0,0.33585453]
[1759873861843,1.15759,4491.1,4491.0,0.00215453]
[1759873862144,1.15759,4491.1,4491.0,0.54985453]
[1759873863239,1.15759,4491.1,4491.0,0.00215453]
[1759873869247,1.67970028,4491.1,4491.0,0.00215453]
[1759873873447,1.67970028,4491.1,4491.0,0.75525453]
[1759873873648,1.67970028,4491.1,4491.0,0.00215453]
[1759873874952,1.67970028,4491.1,4491.0,0.54985453]
[1759873875246,1.67970028,4491.1,4491.0,0.00215453]
[1759873875642,1.67970028,4491.1,4491.0,0.21615453]
[1759873875847,1.27911028,4491.1,4491.0,0.75525453]
[1759873876346,1.27911028,4491.1,4491.0,0.54985453]
[1759873876646,1.27911028,4491.1,4491.0,0.00215453]
[1759873876839,4.15725401,4491.1,4491.0,0.00215453]
[1759873877044,0.757,4489.9,4489.6,1.59525828]
[1759873877245,0.4275,4489.6,4489.5,1.59525828]
[1759873877446,0.757,4489.6,4489.5,0.3337]
[1759873877745,0.757,4489.6,4489.5,1.3337]
[1759873877944,0.757,4489.6,4489.5,1.00162708]
[1759873878846,0.757,4489.6,4489.5,1.75472708]
[1759873879946,0.757,4489.6,4489.5,1.00162708]
[1759873880347,0.757,4489.6,4489.5,1.33532708]
[1759873880952,0.757,4489.6,4489.5,1.77572708]
[1759873881951,0.757,4489.6,4489.5,1.33532708]
[1759873882152,0.757,4489.6,4489.5,1.00162708]
[1759873883447,0.757,4489.6,4488.0,2.78945331]
[1759873883448,1.17145,4488.1,4488.0,2.78945331]
[1759873883655,1.12727,4488.5,4487.7,1.99086874]
[1759873883656,0.7706,4487.8,4487.7,1.99086874]
[1759873883847,0.83249,4487.7,4487.6,2.42676874]
[1759873884052,1.17149,4487.7,4487.6,2.75406874]
[1759873884252,4.00240343,4487.7,4487.6,2.75406874]
[1759873884454,4.00498303,4487.7,4487.6,0.76492533]
[1759873886350,0.0025796,4487.7,4487.6,0.76492533]
[1759873886849,0.40084,4488.3,4488.2,0.7632]
[1759873887055,0.40082,4488.5,4488.2,0.4359]
[1759873887255,3.43777318,4488.7,4488.6,0.7632]
[1759873887451,0.1252,4489.5,4488.6,0.7632]
[1759873887646,0.3373,4489.4,4488.7,0.3295]
[1759873887853,0.3373,4489.4,4488.8,0.4337]
[1759873887854,0.40079,4488.9,4488.8,0.4337]
[1759873888052,0.40079,4488.9,4488.8,0.7632]
[1759873888351,0.76746827,4489.5,4489.4,0.7632]
[1759873888546,0.00276827,4489.5,4489.4,0.7632]
[1759873892952,0.43016827,4489.5,4489.4,0.7632]
[1759873893550,0.76746827,4489.5,4489.4,0.7632]
[1759873893956,0.55836827,4489.5,4489.4,0.7632]
[1759873894160,0.00276827,4489.5,4489.4,0.7632]
[1759873895460,0.76746827,4489.5,4489.4,0.3295]
[1759873896162,0.76746827,4489.5,4489.4,0.5391]
[1759873896462,0.82816,4489.2,4489.1,0.4326]
[1759873896660,1.16546,4489.2,4489.1,0.9862]
[1759873901060,0.95636,4489.2,4489.1,0.9862]
[1759873901255,1.16746,4489.2,4489.1,0.223]
[1759873901461,0.7667,4489.2,4489.1,0.7507]
[1759873901663,0.3295,4489.4,4489.1,0.6528]
[1759873901862,0.73299827,4489.5,4489.4,0.314]
[1759873902159,0.95399827,4489.5,4489.4,0.7438]
[1759873902561,0.73299827,4489.5,4489.4,0.7438]
[1759873902764,0.40349827,4489.5,4489.4,0.7438]
[1759873903965,0.95399827,4489.5,4489.4,0.7438]
[1759873904164,1.16509827,4489.5,4489.4,0.7438]
[1759873904366,0.62449827,4489.5,4489.4,0.7438]
[1759873904864,0.95399827,4489.5,4489.4,0.7438]
[1759873905969,0.40349827,4489.5,4489.4,0.7438]
[1759873908368,0.73299827,4489.5,4489.4,0.7438]
[1759873909964,0.95399827,4489.5,4489.4,0.7438]
[1759873913267,0.95399827,4489.5,4489.4,1.03102213]
[1759873914075,0.40349827,4489.5,4489.4,1.03102213]
[1759873914771,0.00276827,4489.5,4489.4,1.03102213]
[1759873915577,0.40349827,4489.5,4489.4,1.03102213]
[1759873915974,0.73299827,4489.5,4489.4,1.03102213]
[1759873916277,0.00276827,4489.5,4489.4,1.03102213]
[1759873916976,0.00276827,4489.5,4489.4,1.43176213]
[1759873917567,0.00276827,4489.5,4489.4,42.23176213]
[1759873922485,0.40068,4490.1,4490.0,0.8623]
[1759873922781,0.9376304,4490.1,4490.0,0.8623]
[1759873923479,0.94000547,4490.1,4490.0,0.8623]
[1759873924680,0.53932547,4490.1,4490.0,0.8623]
[1759873925485,0.85722547,4490.1,4490.0,0.8623]
[1759873925983,0.53932547,4490.1,4490.0,0.8623]
[1759873932689,0.94000547,4490.1,4490.0,0.8623]
[1759873932891,1.48110547,4490.1,4490.0,0.7388]
[1759873933095,1.08042547,4490.1,4490.0,0.7388]
[1759873934088,1.69160547,4490.1,4490.0,0.7388]
[1759873934992,1.28219,4490.0,4489.9,0.223]
[1759873935185,1.8191404,4490.0,4489.9,0.223]
[1759873938493,0.1299,4489.5,4489.4,0.28722213]
[1759873938702,0.2232,4489.0,4488.8,5.371]
[1759873938900,0.5411,4488.9,4488.8,0.523]
[1759873939094,0.7516,4488.9,4488.8,0.746]
[1759873939294,0.7516,4488.9,4488.8,0.9618]
[1759873939699,1.15238,4488.9,4488.8,0.9618]
[1759873948100,1.15238,4488.9,4488.8,0.7388]
[1759873950303,0.82931,4488.6,4488.5,0.223]
[1759873950503,1.13971,4488.6,4488.5,0.7543]
[1759873951609,1.13971,4488.6,4488.5,0.4453]
[1759873951807,1.13971,4488.6,4488.5,0.223]
[1759873953208,0.61133,4488.4,4488.3,0.2223]
[1759873953409,1.13973,4488.4,4488.3,0.5313]
[1759873954010,1.13973,4488.4,4488.3,0.2223]
[1759873954415,0.82933,4488.4,4488.0,0.90173144]
[1759873954611,0.4285,4488.2,4488.1,0.7414]
[1759873955008,0.7389,4488.2,4488.1,0.7414]
[1759873955405,0.5284,4488.2,4488.1,0.7414]
[1759873957513,0.40084,4488.3,4488.2,0.7414]
[1759873958013,0.92924,4488.3,4488.2,0.7414]
[1759873958218,0.40084,4488.3,4488.2,0.4324]
[1759873958408,0.40084,4488.3,4488.2,0.7414]
[1759873959216,1.15584,4488.3,4488.2,0.7414]
[1759873961516,1.15584,4488.3,4488.2,0.5313]
[1759873961718,0.4294,4487.8,4487.7,0.7681]
[1759873962019,1.15589,4487.7,4487.4,0.3395]
[1759873962317,1.15589,4487.7,4487.3,0.223]
[1759873963119,4.03530621,4487.7,4487.3,0.223]
[1759873963309,9.03530621,4487.7,4486.8,34.756]
[1759873963511,0.755,4486.5,4486.4,0.5487]
[1759873963710,0.8775,4486.5,4486.4,1.03656433]
[1759873963920,0.8775,4486.5,4486.4,3.59463942]
[1759873964119,0.8775,4486.5,4486.4,3.32977509]
[1759873964419,0.87968416,4486.5,4486.4,3.33176811]
[1759873965013,0.87968416,4486.5,4486.4,3.21166811]
[1759873965415,0.53878416,4486.5,4486.4,3.55116811]
[1759873965620,0.87968416,4486.5,4486.4,2.99226811]
[1759873965813,0.75718416,4486.5,4486.4,3.55116811]
[1759873967515,0.87968416,4486.5,4486.4,3.55116811]
[1759873967819,0.87968416,4486.5,4486.4,2.78306811]
[1759873972626,0.87968416,4486.5,4486.4,2.99226811]
[1759873973022,1.28068416,4486.5,4486.4,2.99226811]
[1759873973229,1.28068416,4486.5,4486.4,3.55116811]
[1759873973729,1.15818416,4486.5,4486.4,3.55116811]
[1759873974628,1.28068416,4486.5,4486.4,2.56006811]
[1759873975022,1.28068416,4486.5,4486.4,2.76926811]
[1759873975423,1.28068416,4486.5,4486.4,3.10876811]
[1759873976231,1.28068416,4486.5,4486.4,3.32816811]
[1759873978634,1.28068416,4486.5,4486.4,2.56006811]
[1759873979022,1.28068416,4486.5,4486.4,2.77476811]
[1759873979336,1.28068416,4486.5,4486.4,3.10816811]
[1759873981532,0.53878416,4486.5,4486.4,3.54746811]
[1759873983635,0.32778416,4486.5,4486.4,3.54746811]
[1759873983838,0.89268416,4486.5,4486.4,2.78306811]
[1759873984537,1.29368416,4486.5,4486.4,2.78306811]
[1759873984837,0.89268416,4486.5,4486.4,2.78306811]
[1759873985738,1.29368416,4486.5,4486.4,2.78306811]
[1759873986039,1.29368416,4486.5,4486.4,2.56006811]
[1759873987538,0.89268416,4486.5,4486.4,2.56006811]
[1759873987937,1.29368416,4486.5,4486.4,2.56006811]
[1759873988933,1.16168416,4486.5,4486.4,3.32446811]
[1759873989134,0.00218416,4486.5,4486.4,3.32446811]
[1759873989440,0.00218416,4486.5,4486.4,3.72547811]
[1759873990742,0.00218416,4486.5,4486.4,3.54746811]
[1759873991035,0.89468416,4486.5,4486.4,2.99106811]
[1759873991230,0.76268416,4486.5,4486.4,3.54746811]
[1759873992539,0.89468416,4486.5,4486.4,3.54746811]
[1759873993841,0.76268416,4486.5,4486.4,3.54746811]
[1759873994241,1.16368416,4486.5,4486.4,3.54746811]
[1759873997744,1.29568416,4486.5,4486.4,3.54746811]
[1759873998047,1.29568416,4486.5,4486.4,2.99776811]
[1759873998446,1.29568416,4486.5,4486.4,2.78306811]
[1759873999646,1.29568416,4486.5,4486.4,2.56006811]
[1759874001250,4.78000319,4486.5,4486.4,2.56006811]
[1759874001450,9.78000319,4486.5,4486.4,2.56006811]
[1759874001950,8.94610319,4486.5,4485.5,0.135]
[1759874002253,0.40108,4485.7,4485.6,0.3334]
[1759874002749,3.28210511,4485.7,4485.6,0.3334]
[1759874002948,3.28210511,4485.7,4485.6,0.335387]
[1759874006144,0.40112,4485.1,4485.0,0.135]
[1759874006450,0.40112,4485.1,4483.6,0.5481]
[1759874006451,0.40123,4484.0,4483.6,0.5481]
[1759874006647,2.87110077,4485.1,4484.0,0.135]
[1759874006846,0.03881795,4485.7,4484.7,0.5481]
[1759874006847,1.00268,4485.7,4484.7,0.5481]
[1759874007046,2.93562864,4485.0,4484.8,0.2042]
[1759874007241,0.40113,4485.0,4484.8,0.00247819]
[1759874007447,5.223,4484.9,4484.8,0.32357819]
[1759874007648,8.15862864,4484.9,4484.8,0.32357819]
[1759874008154,2.93562864,4484.9,4484.8,0.52777819]
[1759874008358,3.15862864,4484.9,4484.8,0.52777819]
[1759874009050,2.93562864,4484.9,4484.8,0.52777819]
[1759874009354,3.15862864,4484.9,4484.8,0.32357819]
[1759874009658,2.93562864,4484.9,4484.8,0.74717819]
[1759874010159,2.93562864,4484.9,4484.8,0.00247819]
[1759874010453,8.47711346,4484.9,4484.8,0.00247819]
[1759874010753,8.15862864,4484.9,4484.8,0.00247819]
[1759874011253,8.69969512,4484.9,4484.8,0.00247819]
[1759874011458,9.70256512,4484.9,4484.2,0.3211]
[1759874011652,0.54106648,4484.8,4484.2,0.3211]
[1759874011855,1.00304,4484.1,4483.6,0.3211]
[1759874012048,1.00307,4484.0,4483.5,0.135]
[1759874012255,0.40126,4483.6,4483.5,0.135]
[1759874012448,0.40126,4483.6,4483.5,0.13710868]
[1759874012654,3.34024189,4483.6,4483.5,0.13710868]
[1759874012855,3.34024189,4483.6,4483.5,0.642388]
[1759874013650,3.34024189,4483.6,4483.5,1.065988]
[1759874013855,0.40131,4483.0,4482.9,0.34340724]
[1759874014361,3.33911678,4483.0,4482.9,0.34340724]
[1759874014554,3.56211678,4483.0,4482.9,0.34340724]
[1759874014947,3.34116815,4483.0,4482.9,0.34597262]
[1759874015151,3.34116815,4483.0,4482.9,0.76957262]
[1759874015152,2.93985815,4483.0,4482.9,0.76957262]
[1759874015358,0.00205137,4483.0,4482.9,0.76957262]
[1759874015853,0.40126,4483.6,4482.9,5.76957262]
[1759874016059,0.40121,4484.1,4484.0,0.1297]
[1759874016357,0.62421,4484.1,4484.0,0.8744]
[1759874016858,3.36703647,4484.1,4484.0,0.8744]
[1759874017161,0.00259883,4484.1,4484.0,0.8744]
[1759874017565,0.00259883,4484.1,4484.0,5.8744]
[1759874017858,0.00259883,4484.1,4484.0,0.8744]
[1759874018860,0.00259883,4484.1,4484.0,5.8744]
[1759874019958,0.068,4485.8,4485.6,0.3282]
[1759874020154,0.40107,4485.7,4485.6,0.3282]
[1759874020353,0.40107,4485.7,4485.6,0.5468]
[1759874020654,3.32929639,4485.7,4485.6,0.5468]
[1759874020959,3.33136959,4485.7,4485.6,0.7731]
[1759874022260,2.93029959,4485.7,4485.6,0.7731]
[1759874022964,0.0020732,4485.7,4485.6,0.7731]
[1759874023661,0.0020732,4485.7,4485.6,5.7731]
[1759874023858,0.0020732,4485.7,4485.6,5.3282]
[1759874024161,0.0020732,4485.7,4485.6,5.7731]
[1759874024762,1e-08,4485.7,4485.6,5.7731]
[1759874026462,1.00241,4487.0,4486.5,0.124]
[1759874026657,0.40095,4487.0,4486.9,0.2186]
[1759874027162,3.32073664,4487.0,4486.9,0.5468]
[1759874027561,0.40099,4486.6,4486.5,0.124]
[1759874027762,0.40099,4486.6,4486.5,0.1255606]
[1759874027956,0.40099,4486.6,4486.5,0.8986606]
[1759874030363,0.40099,4486.6,4486.5,0.4537606]
[1759874030565,0.40099,4486.6,4486.5,0.6723606]
[1759874030761,0.40099,4486.6,4486.5,0.8986606]
[1759874033271,0.40099,4486.6,4486.5,0.6723606]
[1759874034264,0.40099,4486.6,4486.5,0.4537606]
[1759874034464,0.40099,4486.6,4486.5,0.1255606]
[1759874034465,8.47325898,4486.6,4486.5,0.1255606]
[1759874034668,8.47325898,4486.6,4486.5,0.0015606]
[1759874035970,0.40111,4485.2,4485.1,0.3282]
[1759874036869,0.40111,4485.2,4485.1,0.33002165]
[1759874040572,0.40111,4485.2,4485.1,0.54862165]
[1759874041572,0.40111,4485.2,4485.1,0.77082165]
[1759874044176,0.40111,4485.2,4485.1,0.53682165]
[1759874045074,0.40111,4485.2,4485.1,0.75902165]
[1759874047369,0.40111,4485.3,4485.1,0.44332165]
[1759874047579,0.40111,4485.3,4485.2,0.7572]
[1759874047878,0.40109,4485.5,4485.2,0.4415]
[1759874048173,0.40109,4485.5,4485.4,0.7572]
[1759874052079,0.40099,4486.6,4486.5,0.1253]
[1759874052382,3.88333938,4486.6,4486.5,0.1253]
[1759874052681,3.88333938,4486.6,4486.5,0.441]
[1759874055478,5.07415238,4486.6,4486.5,0.441]
[1759874056681,5.29715238,4486.6,4486.5,0.441]
[1759874058087,5.29715238,4486.6,4486.5,0.8825]
[1759874058088,3.88333938,4486.6,4486.5,0.8825]
[1759874058678,0.94528264,4486.6,4486.5,0.8825]
[1759874062495,0.40099,4486.6,4486.5,0.8825]
[1759874066592,1.00224,4487.7,4486.6,0.3157]
[1759874066798,0.40097,4486.8,4486.7,0.4415]
[1759874066994,0.40097,4486.8,4486.7,0.7572]
[1759874067195,0.40097,4486.8,4486.7,41.5572]
[1759874070102,0.40096,4486.9,4486.7,41.2415]
[1759874070307,0.40096,4486.9,4486.8,0.7382]
[1759874070710,1.00228,4487.5,4486.8,0.4306]
[1759874070906,1.00228,4487.5,4486.9,0.7382]
[1759874071104,0.40371059,4487.0,4486.9,0.7382]
[1759874071610,0.00276059,4487.0,4486.9,0.7382]
[1759874074811,1.591663,4488.2,4488.1,0.3076]
[1759874075113,3.84379029,4488.2,4488.1,0.7382]
[1759874075802,3.84648879,4488.2,4488.1,0.7382]
[1759874077213,3.30333728,4488.2,4488.1,0.7382]
[1759874078415,0.0026985,4488.2,4488.1,0.7382]
[1759874079409,0.0026985,4488.2,4488.1,1.13905]
[1759874080411,0.0026985,4488.2,4488.1,6.13905]
[1759874080616,1.00183,4489.5,4488.8,0.3308]
[1759874080808,0.40073,4489.5,4489.4,0.5547]
[1759874081006,3.84060093,4489.5,4489.4,0.5547]
[1759874081614,3.84252313,4489.5,4489.4,0.76126839]
[1759874091526,3.3001028,4489.5,4489.4,0.76126839]
[1759874092226,3.3001028,4489.5,4489.4,0.33266839]
[1759874092422,4.06542185,4489.5,4489.4,0.33266839]
[1759874098834,9.06542185,4489.5,4489.4,0.00186839]
[1759874099333,9.06542185,4489.5,4489.4,0.32286839]
[1759874101728,0.40081,4488.6,4488.5,0.1264]
[1759874101933,0.40081,4488.6,4488.5,0.4474]
[1759874102132,3.34500812,4488.6,4488.5,0.4474]
[1759874102731,3.34500812,4488.6,4488.5,0.44927376]
[1759874104731,3.34500812,4488.6,4488.5,0.00187376]
[1759874105335,3.88845801,4488.6,4488.5,0.00187376]
[1759874105636,4.11145801,4488.6,4488.5,0.44957376]
[1759874111642,3.88845801,4488.6,4488.5,0.44957376]
[1759874111942,4.11145801,4488.6,4488.5,0.44957376]
[1759874112845,3.88845801,4488.6,4488.5,0.44957376]
[1759874113044,4.11145801,4488.6,4488.5,0.44957376]
[1759874114139,4.11145801,4488.6,4488.5,0.67127376]
[1759874114946,4.11145801,4488.6,4488.5,0.44957376]
[1759874117144,3.88845801,4488.6,4488.5,0.44957376]
[1759874117352,4.11145801,4488.6,4488.5,0.44957376]
[1759874119745,3.56800812,4488.6,4488.5,0.67127376]
[1759874121057,3.34500812,4488.6,4488.5,0.88377376]
[1759874122057,0.40081,4488.6,4488.5,0.88377376]
[1759874123961,0.40081,4488.6,4488.5,5.88377376]
[1759874124859,0.62375,4489.3,4489.2,0.5427]
[1759874125060,0.94527874,4489.3,4489.2,0.7552]
[1759874125253,3.88998634,4489.3,4489.2,0.7552]
[1759874130865,3.88998634,4489.3,4489.2,0.321]
[1759874131360,1.00198,4488.9,4488.6,0.3079]
[1759874131566,0.4008,4488.7,4488.6,0.3079]
[1759874131761,0.94532874,4488.7,4488.5,0.12857376]
[1759874131961,0.76752874,4488.6,4488.5,0.12857376]
[1759874132360,3.66008406,4488.6,4488.5,0.43647376]
[1759874133062,3.43708406,4488.6,4488.5,0.43647376]
[1759874133264,3.66008406,4488.6,4488.5,0.43647376]
[1759874135166,3.43708406,4488.6,4488.5,0.43647376]
[1759874135366,3.66008406,4488.6,4488.5,0.43647376]
[1759874136968,4.06089406,4488.6,4488.5,0.43647376]
[1759874138769,4.06089406,4488.6,4488.5,0.12857376]
[1759874139464,4.06089406,4488.6,4488.5,0.45557376]
[1759874141271,3.83789406,4488.6,4488.5,0.67067376]
[1759874144576,3.83789406,4488.6,4488.5,0.88457376]
[1759874149480,0.94533874,4488.6,4488.5,0.88457376]
[1759874154572,0.94533874,4488.6,4488.5,1.28539376]
[1759874155076,0.94533874,4488.6,4488.5,0.88457376]
[1759874161877,0.94533874,4488.6,4488.5,1.10757376]
[1759874162082,0.94533874,4488.6,4488.5,0.89367376]
[1759874162388,0.94533874,4488.6,4488.5,1.11237376]
[1759874162889,0.94533874,4488.6,4488.5,0.88937376]
[1759874168997,0.94533874,4488.6,4488.5,1.29019376]
[1759874180200,0.54452874,4488.6,4488.5,1.29019376]
[1759874180893,0.20482874,4488.6,4488.5,1.29019376]
[1759874181198,0.40078,4489.0,4488.9,0.7518]
[1759874181397,0.40078,4489.0,4488.9,0.9748]
[1759874181599,1.190813,4489.3,4489.2,0.7518]
[1759874181998,0.40075,4489.3,4489.2,0.7518]
[1759874182394,0.40075,4489.3,4489.2,1.15256]
[1759874182599,1.5934752,4489.5,4489.4,0.4246]
[1759874182805,1.5934752,4489.5,4489.4,0.9748]
[1759874183101,0.0019222,4489.5,4489.4,1.37554]
[1759874185603,0.0019222,4489.5,4489.4,1.59927565]
[1759874190209,1.00151,4491.0,4490.5,0.3395]
[1759874190408,1.00151,4491.0,4490.6,0.5339]
[1759874190607,1.00151,4491.0,4490.7,0.3171]
[1759874190805,0.40061,4490.8,4490.7,0.3171]
[1759874191007,0.40061,4490.8,4490.7,0.5339]
[1759874191204,3.24829375,4490.8,4490.7,0.5339]
[1759874192208,3.24829375,4490.8,4490.7,0.7494]
[1759874192705,0.40296953,4490.8,4490.7,0.7494]
[1759874192910,0.93536874,4490.8,4490.7,0.7494]
[1759874195108,0.93536874,4490.8,4490.7,1.15002]
[1759874195313,0.93536874,4490.8,4490.7,0.7494]
[1759874195513,0.53426816,4490.8,4490.7,0.7494]
[1759874195716,0.00235953,4490.8,4490.7,0.7494]
[1759874196114,0.40057,4491.4,4491.1,0.7494]
[1759874196317,0.40052,4491.8,4491.7,0.7494]
[1759874196617,0.93223608,4491.8,4491.7,0.7494]
[1759874197011,0.93459744,4491.8,4491.7,0.75173333]
[1759874203019,0.93459744,4491.8,4491.7,0.97473333]
[1759874204418,0.40288136,4491.8,4491.7,0.97473333]
[1759874206419,0.40288136,4491.8,4491.7,0.75923333]
[1759874206825,0.40288136,4491.8,4491.7,0.97863333]
[1759874210820,0.40288136,4491.8,4491.7,0.31943333]
[1759874216326,0.9347658,4491.8,4491.7,0.31943333]
[1759874222932,0.9347658,4491.8,4491.7,0.75363333]
[1759874235548,0.9352758,4491.8,4491.7,0.75363333]
[1759874259756,3.77391419,4491.8,4491.7,0.31943333]
[1759874259960,0.84633,4490.6,4490.5,0.5417]
[1759874260164,1.18343,4490.6,4490.5,0.5417]
[1759874260361,0.84633,4490.6,4490.5,0.5417]
[1759874260960,0.84633,4490.6,4490.5,0.54361518]
[1759874261558,0.40063,4490.6,4490.5,0.94425518]
[1759874261965,0.40063,4490.6,4490.5,1.25535518]
[1759874263267,0.40063,4490.6,4490.5,0.85471518]
[1759874264668,0.40063,4490.7,4490.6,0.7301]
[1759874272876,0.62413,4490.7,4490.6,0.7301]
[1759874273373,0.40063,4490.6,4490.5,0.22491518]
[1759874273578,1.18343,4490.6,4490.5,0.22491518]
[1759874274079,1.18343,4490.6,4490.5,0.53601518]
[1759874275166,1.18343,4490.6,4490.5,0.31301518]
[1759874281482,4.04024039,4490.6,4490.5,0.31301518]
[1759874283386,4.04024039,4490.6,4490.5,0.51821518]
[1759874285281,4.04024039,4490.6,4490.5,0.64491518]
[1759874285482,4.04024039,4490.6,4490.5,0.85731518]
[1759874288483,1.00144,4491.3,4490.5,0.85731518]
[1759874288484,0.3261,4491.7,4490.5,5.76921518]
[1759874288689,1.14842042,4491.6,4491.5,0.8511]
[1759874289689,0.92482042,4491.6,4491.5,0.8511]
[1759874290885,0.52428042,4491.6,4491.5,0.8511]
[1759874296491,0.52428042,4491.6,4491.5,5.8511]
[1759874296990,1.190813,4492.4,4492.3,0.4176]
[1759874297193,0.2236,4492.4,4492.3,0.7244]
[1759874297987,0.22605514,4492.4,4492.3,0.7244]
[1759874298194,0.62652514,4492.4,4492.3,0.7244]
[1759874300093,0.00245514,4492.4,4492.3,1.12488]
[1759874300291,1.17852514,4492.4,4492.3,0.3068]
[1759874301796,1.17852514,4492.4,4492.3,0.512]
[1759874306200,0.4495,4491.7,4491.6,0.512]
[1759874306402,0.62419,4491.1,4491.0,0.8511]
[1759874306600,0.85009,4491.1,4491.0,0.8511]
[1759874306800,0.85009,4491.1,4491.0,1.2517]
[1759874307102,0.4495,4491.1,4491.0,1.2517]
[1759874307692,0.85009,4491.1,4491.0,0.8511]
[1759874307898,1.16449,4491.1,4491.0,0.8511]
[1759874308302,1.16449,4491.1,4491.0,1.2517]
[1759874311102,1.16449,4491.1,4491.0,0.8511]
[1759874313302,1.16449,4491.1,4491.0,0.6387]
[1759874313508,1.16449,4491.1,4491.0,0.3068]
[1759874313711,1.16449,4491.1,4491.0,0.5298]
[1759874313899,1.16449,4491.1,4491.0,0.741]